Cogmind - Beta 14 @@@ ROGUE MODE // 2024.09.08 @ 17:24:02 Player: J(3)-S51e Result: Destroyed by G-47 Trooper with Particle Gun Performance ------------- Evolutions (2) 1000 Regions Visited (6) 1200 Robots Destroyed (29) 145 Value Destroyed (863) 863 Prototype IDs (0) 0 Alien Tech Used (0) 0 Bonus (-4) -4 TOTAL SCORE: 3204 Bonus ------- Friendly Fire -4 Cogmind --------- Core Integrity 0/550 Matter 300/300 Energy 86/100 System Corruption 0% Temperature Cool (27) Movement Core (50) Location -8/Materials Parts ------- > --- POWER (1) -------- (None) > --- PROPULSION (3) --- (None) > --- UTILITY (4) ------ Improved Signal Interpreter Makeshift System Shield > --- WEAPON (3) ------- (None) > --- INVENTORY (5) ---- Advanced Heat Sink Melee Analysis Suite Melee Analysis Suite Light Armor Plating Medium Armor Plating Peak State ------------ > --- POWER ------------ Light Angular Momentum Engine > --- PROPULSION ------- Light Treads Light Treads Light Treads > --- UTILITY ---------- Medium Storage Unit High-capacity Matter Pod Improved Signal Interpreter Makeshift System Shield > --- WEAPON ----------- Field Laser Pulse Rifle Missile Launcher > --- INVENTORY -------- Improved Ion Engine Carbon-fiber Leg Flight Unit Advanced Heat Sink Melee Analysis Suite Melee Analysis Suite Light Armor Plating Medium Armor Plating Mining Laser [Rating: 28] Favorites ----------- Power Ion Engine Engine Ion Engine Propulsion Compact Wheel Treads Light Treads Leg Carbon-fiber Leg Wheel Compact Wheel Flight Unit Flight Unit Utility Seismic Detector Device Seismic Detector Storage Medium Storage Unit Processor Improved Signal Interpreter Hackware Makeshift System Shield Protection Core Shielding Weapon Medium Laser Energy Gun Medium Laser Energy Cannon Ion Cannon Ballistic Gun High-powered Shotgun Ballistic Cannon Flak Cannon Launcher Missile Launcher Special Weapon Mining Laser Slashing Weapon Makeshift Axe Build | -11 -10 -9 -9 -9 -8 -8 ------- Run | Yrd Mat Mat Min Exi Min Mat Slots Evolved 4 | . . 2 . . . 2 Power . | . . . . . . . Propulsion 1 | . . 1 . . . . Utility 2 | . . . . . . 2 Weapon 1 | . . 1 . . . . Parts Attached 48 | 6 1 5 6 2 3 25 Power 4 | 1 . . . . 1 2 Engine 4 | 1 . . . . 1 2 Core . | . . . . . . . Reactor . | . . . . . . . Propulsion 14 | 2 . 2 3 . 1 6 Treads 4 | . . . . . . 4 Leg 2 | . . . . . 1 1 Wheel 5 | 2 . 2 1 . . . Hover . | . . . . . . . Flight 3 | . . . 2 . . 1 Utility 8 | 1 . 1 . 1 . 5 Device 2 | . . 1 . . . 1 Storage 3 | 1 . . . 1 . 1 Processor 1 | . . . . . . 1 Hackware 1 | . . . . . . 1 Protection 1 | . . . . . . 1 Artifact . | . . . . . . . Weapon 22 | 2 1 2 3 1 1 12 Energy Gun 5 | 1 . 1 . . . 3 Energy Cannon 1 | . . . . . . 1 Ballistic Gun 7 | 1 1 . 1 1 . 3 Ballistic Cannon 1 | . . . 1 . . . Launcher 3 | . . 1 . . . 2 Special Weapon 3 | . . . 1 . . 2 Impact Weapon . | . . . . . . . Slashing Weapon 2 | . . . . . 1 1 Piercing Weapon . | . . . . . . . Special Melee Weapon . | . . . . . . . Unidentified Prototypes . | . . . . . . . Parts Lost 30 | . . 2 1 . 3 24 Power 4 | . . . . . 1 3 Propulsion 13 | . . 2 1 . 1 9 Utility 2 | . . . . . . 2 Weapon 11 | . . . . . 1 10 Highest Loss Streak 15 | . . 2 1 . 3 15 To Critical Strikes . | . . . . . . . Average Slot Usage (%) 95 | . 85 87 98 100 98 88 Engine 10 | . 14 11 11 11 10 7 Treads 1 | . . . . . . 5 Leg 3 | . . . . . 9 6 Wheel 16 | . 28 21 19 22 11 5 Flight 8 | . . . 12 11 11 4 Device 9 | . . 10 11 11 11 5 Storage 12 | . 14 11 11 11 11 15 Hackware 1 | . . . . . . 9 Energy Gun 9 | . . 11 11 11 11 6 Ballistic Gun 10 | . 28 18 20 11 . 6 Ballistic Cannon 6 | . . . . 11 11 5 Slashing Weapon 2 | . . . . . 10 1 Peak Build Rating 28 | 6 6 11 12 14 18 28 Average Rating 14 | 5 6 8 11 13 16 22 On Entrance 9 | . 6 6 11 12 14 18 Naked Turns . | . . . . . . . Heaviest Build 35 | 13 13 20 20 27 27 35 Greatest Support 60 | 20 20 36 26 26 26 60 Greatest Overweight (x) 9 | . . 1 4 1 1 9 Average Overweight (x) . | . . . . . 1 . Largest Inventory Capacity 10 | 8 8 8 8 10 10 10 Average Capacity 9 | 7 8 8 8 9 10 9 Most Carried 10 | 6 8 8 8 8 10 10 Average Carried 8 | 3 7 6 7 7 8 8 Final Capacity 10 | 8 8 8 8 10 10 5 Final Carried 10 | 6 8 8 8 8 10 5 Class Distribution -------------------- 56% | Gunner 35% | Mutant 4% | Scavenger-Gunner Dominant Class ---------------- Mutant | -10/Materials Gunner | -9/Materials Gunner | -9/Mines Gunner | -9/Exiles Mutant | -8/Mines Gunner | -8/Materials Resources | -11 -10 -9 -9 -9 -8 -8 ----------- Run | Yrd Mat Mat Min Exi Min Mat Matter Collected 1022 | 219 95 30 98 . 267 313 Remotely . | . . . . . . . Salvage Created 782 | . 109 149 56 . 107 361 Parts 60 | . 7 20 7 . 5 21 Haulers Intercepted . | . . . . . . . Recyclers Shooed 3 | . 2 . 1 . . . Parts Field Recycled . | . . . . . . . Retrieved Matter . | . . . . . . . Parts Self-Destructed . | . . . . . . . Prevented . | . . . . . . . Kills | -11 -10 -9 -9 -9 -8 -8 ------- Run | Yrd Mat Mat Min Exi Min Mat Combat Hostiles Destroyed 23 | . 3 4 4 . 3 9 Melee 3 | . . . . . . 3 Guns 10 | . 3 1 4 . . 2 Cannons 4 | . . . . . 3 1 AOE 6 | . . 3 . . . 3 Classes Destroyed 10 | . 2 4 . . 1 3 Worker 1 | . . 1 . . . . Builder 2 | . . 2 . . . . Recycler 1 | . 1 . . . . . Mechanic 1 | . . . . . . 1 Operator 1 | . . . . . . 1 Swarmer 7 | . 3 . 4 . . . Grunt 9 | . . 2 . . 2 5 Duelist 1 | . . . . . 1 . Sentry 5 | . . 2 . . . 3 Hunter 1 | . . . . . . 1 Best Kill Streak 8 | . 4 7 4 . 2 8 Combat Bots Only 7 | . 3 4 4 . 2 7 Max Kills in Single Turn 3 | . 1 3 2 . 1 2 Gunslinging 1 | . . . 1 . . . Exploded 2 | . . 2 . . . 1 Melee 1 | . . . . . . 1 Uniques/NPCs Destroyed . | . . . . . . . Combat | -11 -10 -9 -9 -9 -8 -8 -------- Run | Yrd Mat Mat Min Exi Min Mat Hostile Shots Fired 301 | . 34 27 25 . 26 189 Missed 77 | . 14 8 8 . 2 45 Damage Taken 3321 | . 158 274 131 . 372 2386 Core 866 | . 23 121 44 . 121 557 Absorbed by Shields . | . . . . . . . Core Remaining (%) 72 | 100 90 . . . 28 . Volleys Fired 58 | . 10 6 16 . 7 19 Largest 3 | . 2 3 3 . 3 3 Hottest 226 | . 40 106 100 . 119 226 Shots Fired 128 | . 20 16 32 1 17 42 Gun 92 | . 20 13 24 . 9 26 Cannon 18 | . . . . 1 8 9 Launcher 7 | . . 3 . . . 4 Special 11 | . . . 8 . . 3 Kinetic 73 | . 20 8 16 1 11 17 Thermal 48 | . . 5 16 . 6 21 Explosive 7 | . . 3 . . . 4 Electromagnetic . | . . . . . . . Robot Hit Streak 10 | . 10 3 6 2 5 8 Robot Miss Streak 5 | . 3 2 4 3 4 5 Penetration Max . | . . . . . . . Secondary Targets 3 | . 1 . 2 . . . Max Gunslinging Chain 1 | . 1 . 1 . . . Shots Hit Robots 88 | . 13 8 14 1 18 34 Core Hits 69 | . 6 15 6 . 13 29 Critical Kills . | . . . . . . . Critical Parts Destroyed 1 | . . . . . 1 . Critical Strikes 4 | . . . 1 . 2 1 Burn 3 | . . . 1 . 1 1 Destroy 1 | . . . . . 1 . Melee Attacks 11 | . . . . . 6 5 Impact . | . . . . . . . Slashing 11 | . . . . . 6 5 Piercing . | . . . . . . . Sneak Attacks . | . . . . . . . Combat Hostiles . | . . . . . . . Follow-up Attacks . | . . . . . . . Damage Inflicted 2340 | . 129 481 237 9 355 1129 Guns 866 | . 129 81 237 . 140 279 Cannons 339 | . . . . 9 131 199 Explosions 785 | . . 384 . . . 401 Melee 277 | . . . . . 84 193 Ramming 25 | . . 16 . . . 9 Kinetic 748 | . 129 44 150 9 209 207 Thermal 505 | . . 37 87 . 62 319 Explosive 785 | . . 384 . . . 401 Electromagnetic . | . . . . . . . Impact . | . . . . . . . Slashing 277 | . . . . . 84 193 Piercing . | . . . . . . . Highest Corruption 2 | . 2 2 2 2 2 . Average Corruption 2 | . 2 2 2 2 2 . Corruption Purged . | . . . . . . . Corruption Blocked . | . . . . . . . Effects 23 | . 3 1 2 10 7 . Message Errors 5 | . 1 . . 3 1 . Matter Fused 8 | . 1 . 2 3 2 . Heat Flow Errors 3 | . 1 1 . 1 . . Energy Discharges 2 | . . . . 1 1 . Data Loss (minor) 1 | . . . . 1 . . Data Loss (major) 2 | . . . . . 2 . Misfires 2 | . . . . 1 1 . Overload Shots . | . . . . . . . Overflow Damage 27 | . . 26 . . 1 . Projectiles . | . . . . . . . Explosions 26 | . . 26 . . . . Melee 1 | . . . . . 1 . Knockbacks 7 | . . . . . 5 2 Impact . | . . . . . . . Kinetic 7 | . . . . . 5 2 Secondary . | . . . . . . . Self-Inflicted Damage 132 | . . 8 . . . 124 Shots 3 | . . . . . . 3 Rammed 6 | . . 3 . . . 3 Targets Rammed 7 | . . 3 . . . 4 Kicked 1 | . . . . . . 1 Crushed . | . . . . . . . Highest Temperature 294 | . 107 103 121 228 281 294 Average Temperature 93 | . 57 47 28 124 147 128 Received Heat Transfer 1401 | . . 87 . . 207 1107 Effects 2 | . . . . . 1 1 Energy Bleed 1 | . . . . . . 1 Interference 1 | . . . . . 1 . Siege Activations . | . . . . . . . Robots Corrupted . | . . . . . . . Combat Hostiles . | . . . . . . . Parts Fried . | . . . . . . . Impact Corruptions . | . . . . . . . Robots Melted . | . . . . . . . Combat Hostiles . | . . . . . . . Parts Melted 1 | . . . . . 1 . Heat Transferred 1432 | . . 111 333 . 259 729 Parts Sabotaged . | . . . . . . . Parts Stolen . | . . . . . . . Parts Stripped . | . . . . . . . Power Chain Reactions . | . . . . . . . Alert | -11 -10 -9 -9 -9 -8 -8 ------- Run | Yrd Mat Mat Min Exi Min Mat Peak Influence 226 | . 120 226 168 . 50 180 Initial 87 | . . 50 87 . . . Average 71 | . 72 118 159 . 33 48 Maximum Alert Level 1 | . . 1 . . . . Low Security (%) 97 | 100 100 72 100 . 100 100 Level 1 2 | . . 27 . . . . Level 2 . | . . . . . . . Level 3 . | . . . . . . . Level 4 . | . . . . . . . Level 5 . | . . . . . . . High Security . | . . . . . . . Max Security . | . . . . . . . Squads Dispatched 6 | . . 2 . . . 4 Investigation . | . . . . . . . Extermination . | . . . . . . . Reinforcement 3 | . . 2 . . . 1 Assault . | . . . . . . . Garrison 3 | . . . . . . 3 Intercept . | . . . . . . . Searches Triggered . | . . . . . . . Construction Impeded 1 | . . 1 . . . . Haulers Reinforced . | . . . . . . . Active Scanning Responses . | . . . . . . . Cargo Convoy Interrupts . | . . . . . . . Stealth | -11 -10 -9 -9 -9 -8 -8 --------- Run | Yrd Mat Mat Min Exi Min Mat Distress Signals 7 | . 1 2 . . . 4 Communications Jammed . | . . . . . . . Distress Signals . | . . . . . . . Times Spotted 52 | . 11 9 4 . 7 21 Peak Tracking Total 9 | . 5 5 4 . 4 9 Tactical Retreats 2 | . 1 . . . . 1 Traps | -11 -10 -9 -9 -9 -8 -8 ------- Run | Yrd Mat Mat Min Exi Min Mat Traps Triggered 2 | . 1 1 . . . . Indirectly . | . . . . . . . Trap Hack Attempts . | . . . . . . . Triggered . | . . . . . . . Disarmed . | . . . . . . . Reprogrammed . | . . . . . . . Reused . | . . . . . . . Traps Extracted . | . . . . . . . Installed . | . . . . . . . Triggered . | . . . . . . . Machines | -11 -10 -9 -9 -9 -8 -8 ---------- Run | Yrd Mat Mat Min Exi Min Mat Machines Disabled 2 | . . . . . . 2 Max in Single Turn 1 | . . . . . . 1 Machines Repaired . | . . . . . . . Machines Dismantled . | . . . . . . . Machines Sabotaged . | . . . . . . . Overloaded Fab Kills . | . . . . . . . Hacking | -11 -10 -9 -9 -9 -8 -8 --------- Run | Yrd Mat Mat Min Exi Min Mat Machines Accessed 10 | . 2 3 . 4 . 1 Terminals 6 | . 2 3 . . . 1 Fabricators . | . . . . . . . Repair Stations . | . . . . . . . Recycling Units . | . . . . . . . Scanalyzers . | . . . . . . . Garrison Access . | . . . . . . . Total Hacks 66 | . 2 12 . 49 . 3 Successful 58 | . 1 6 . 49 . 2 Failed 8 | . 1 6 . . . 1 Catastrophic 3 | . 1 2 . . . . Database Lockouts . | . . . . . . . Manual 7 | . . 3 . 4 . . Terminals 17 | . 2 12 . . . 3 Fabricators . | . . . . . . . Repair Stations . | . . . . . . . Recycling Units . | . . . . . . . Scanalyzers . | . . . . . . . Garrison Access . | . . . . . . . Terminal Hacks 55 | . 1 3 . 49 . 2 Record 49 | . . . . 49 . . Branch Access Points 1 | . . 1 . . . . Alert Level 1 | . . 1 . . . . Locate Traps 1 | . . . . . . 1 Zone Layout 3 | . 1 1 . . . 1 Fabricator Hacks . | . . . . . . . Repair Station Hacks . | . . . . . . . Recycling Unit Hacks . | . . . . . . . Scanalyzer . | . . . . . . . Garrison Access Hacks . | . . . . . . . Unauthorized Hacks 3 | . . 3 . . . . Terminals 3 | . . 3 . . . . Assimilate 1 | . . 1 . . . . Botnet 2 | . . 2 . . . . Fabricators . | . . . . . . . Repair Stations . | . . . . . . . Recycling Units . | . . . . . . . Scanalyzers . | . . . . . . . Garrison Access . | . . . . . . . Data Cores Recovered . | . . . . . . . Used . | . . . . . . . Hacking Detections 6 | . 2 3 . . . 1 Full Trace Events . | . . . . . . . Feedback Events . | . . . . . . . Feedback Blocked . | . . . . . . . Robot Schematics Acquired . | . . . . . . . Robots Built . | . . . . . . . Authchips . | . . . . . . . Time . | . . . . . . . Total Robot Build Rating . | . . . . . . . Part Schematics Acquired . | . . . . . . . Parts Built . | . . . . . . . Authchips . | . . . . . . . Time . | . . . . . . . Total Part Build Rating . | . . . . . . . Parts Repaired . | . . . . . . . Time . | . . . . . . . Parts Recycled . | . . . . . . . Recycled Matter . | . . . . . . . Retrieved Matter . | . . . . . . . Retrieved Components . | . . . . . . . Parts Scanalyzed . | . . . . . . . Part Schematics Acquired . | . . . . . . . Parts Damaged . | . . . . . . . Bothacking | -11 -10 -9 -9 -9 -8 -8 ------------ Run | Yrd Mat Mat Min Exi Min Mat Used RIF Installer . | . . . . . . . Robots Hacked . | . . . . . . . Non-combat . | . . . . . . . Combat . | . . . . . . . Robot Hacks Applied . | . . . . . . . Relay Couplers Released . | . . . . . . . Fabnet Peak Effective % . | . . . . . . . Robots Rewired 1 | . . . . 1 . . Allies Hacked . | . . . . . . . Hacks Repelled . | . . . . . . . Allies | -11 -10 -9 -9 -9 -8 -8 -------- Run | Yrd Mat Mat Min Exi Min Mat Total Allies 1 | . . . . 1 . . Largest Group 1 | . . . . 1 1 . Highest-Rated Group 21 | . . . . 21 21 . Highest-Rated Ally 21 | . . . . 21 21 . Total Orders . | . . . . . . . Ally Attacks 1 | . . . . . 1 . Total Damage 18 | . . . . . 18 . Kills . | . . . . . . . Allies Corrupted . | . . . . . . . Allies Melted . | . . . . . . . Intel | -11 -10 -9 -9 -9 -8 -8 ------- Run | Yrd Mat Mat Min Exi Min Mat Robot Analysis Total . | . . . . . . . Derelict Logs Recovered 1 | . . . 1 . . . Drone Launches . | . . . . . . . Drone Recoveries . | . . . . . . . Exploration | -11 -10 -9 -9 -9 -8 -8 ------------- Run | Yrd Mat Mat Min Exi Min Mat Turns Passed 2519 | 60 175 174 334 724 574 478 Spaces Moved 1999 | 57 174 154 239 657 456 262 Core 5 | 1 . . . . . 4 Treads 55 | . . . . . . 55 Legs 13 | . . . . . . 13 Wheels 1902 | 56 174 154 221 657 456 184 Hover . | . . . . . . . Flight 24 | . . . 18 . . 6 Fastest Speed 40 | 50 80 86 90 90 105 40 Average Speed 105 | 79 80 92 111 99 114 129 Slowest Speed 500 | 80 80 115 365 105 115 500 Overloaded Moves . | . . . . . . . Propulsion Burnouts . | . . . . . . . Robots Hopped 1 | . . . . . . 1 Cave-ins Triggered . | . . . . . . . Exploration Rate (%) 42 | 5 33 28 48 93 64 24 Regions Visited 6 Branch Regions 3 Pre-discovered Areas 1 | . . . . 1 . . Known Exits Taken 2 | . . 1 1 . . . Unknown Exits Taken 4 | 1 1 . . 1 1 . Scrap Searched 3 | . . . 1 . 2 . Spaces Dug 6 | . . . 6 . . . Terrain Destroyed 73 | . . 26 7 . . 40 Melee . | . . . . . . . Projectile 8 | . . . 7 . . 1 AOE 65 | . . 26 . . . 39 Terrain Rammed . | . . . . . . . Walls Destroyed . | . . . . . . . Machines Disabled . | . . . . . . . Actions | -11 -10 -9 -9 -9 -8 -8 --------- Run | Yrd Mat Mat Min Exi Min Mat Total 2257 | 68 192 172 265 729 486 345 Wait 62 | . . . . 36 8 18 Move 1991 | 56 173 153 238 656 455 260 Hop 1 | . . . . . . 1 Pick Up 31 | 6 5 3 2 2 6 7 Fast Attach 23 | 6 . 3 3 . . 11 Attach 14 | . . 2 . 1 3 8 Detach . | . . . . . . . Swap 11 | . 1 . 3 1 . 6 Drop 18 | . 3 2 3 3 1 6 Fire 58 | . 10 6 16 . 7 19 Melee 11 | . . . . . 6 5 Ram 3 | . . 3 . . . . Kick 1 | . . . . . . 1 Crush 3 | . . . . . . 3 Escape Stasis . | . . . . . . . Rewire 30 | . . . . 30 . . Trap . | . . . . . . . Miscellaneous . | . . . . . . . Route ------- -11/Scrapyard -10/Materials (discovered 2 exits: *Mat / [*Min]) -9/Materials (discovered 2 exits: *Min x2) -9/Mines (discovered 3 exits: *Mat x2 / *Exi) -9/Exiles (discovered 2 exits: [*Min x2]) -8/Mines -8/Materials History --------- Turn | Location | Event 29 | -11/Scrapyard | Discovered new exit (range 15) 61 | -11/Scrapyard | Entered Materials 170 | -10/Materials | Discovered new exit (range 4) 193 | -10/Materials | Discovered new exit (range 9) 236 | -10/Materials | Entered another Materials area 236 | -9/Materials | Evolved 2 slots: Propulsion x1, Weapon x1 324 | -9/Materials | Identified exit to Mines 410 | -9/Materials | Entered Mines 428 | -9/Mines | Discovered new exit (range 12) 499 | -9/Mines | Discovered new exit (range 14) 536 | -9/Mines | Identified exit to Exiles 552 | -9/Mines | Build established: Gunner 744 | -9/Mines | Entered Exiles 744 | -9/Exiles | Found Exiles lab destroyed 759 | -9/Exiles | Discovered new exit (range 14) 1014 | -9/Exiles | Learned location of Zion (-6) 1269 | -9/Exiles | Discovered new exit (range 10) 1468 | -9/Exiles | Entered Mines 1468 | -8/Mines | Accompanied by 1 ally 1481 | -8/Mines | Core integrity fell below 50% 1528 | -8/Mines | Lost 3 parts (1p1n1w) 1777 | -8/Mines | Build established: Mutant 1894 | -8/Mines | Discovered new exit (range 8) 2042 | -8/Mines | Entered Materials 2042 | -8/Materials | Evolved 2 slots: Utility x2 2281 | -8/Materials | Garrison activated, responded to threat 2374 | -8/Materials | Destroyed 7 combat bots 2379 | -8/Materials | Lost 9 parts (1p3n1u4w) 2479 | -8/Materials | Core integrity fell below 50% 2513 | -8/Materials | Core integrity fell below 20% 2520 | -8/Materials | Destroyed by G-47 Trooper with Particle Gun Last Messages --------------- 02500_ U-05 Engineer lays Concrete. 02502_ Carbon-fiber Leg destroyed. 02503_ U-05 Engineer lays Concrete. 02504_ U-05 Engineer builds a Door. 02505_ U-05 Engineer lays Concrete. 02506_ U-05 Engineer builds a Wall. 02507_ U-05 Engineer destroyed. 02510_ Ion Cannon destroyed. 02511_ U-05 Engineer lays Concrete. 02511_ Critical hit (Burn: +37). 02511_ Lgt. Treads destroyed. 02512_ U-05 Engineer lays Concrete. 02512_ Acquired Welding Torch. 02512_ U-05 Engineer lays Concrete. 02513_ U-05 Engineer builds a Wall. 02513_ Dropped Med. Storage Unit. 02515_ Acquired Flight Unit. 02516_ Welding Torch destroyed. 02518_ Flight Unit destroyed. 02520_ Hcp. Matter Pod destroyed. Map ----- +----------------------------------------------------+ | ?????????????????????????????????????????????????? | | ?????????????????????????????????????????????????? | | ?????????????????????????????????????????????????? | | ?????????????????????????????????????????????????? | | ?????????????????????????????????????????????????? | | ?????????????????????????????????????????????????? | | ?????????????????????????????????????????????????? | | ?????????????????????????????????????????????????? | | ?????????????????????????????????????????????????? | | ?????????????????????????????????????????????????? | | ????????????????????????? ?????????????????????? | | ????????????????????????? ????????????????????? | | ????????????????????????? ????????????????????? | | ????????????????????????? ????????????????????? | | ????????????????????????? #????????????????????? | | ????????????????????????? #????????????????????? | | ????????????????????????? #????????????????????? | | ????????????????????????# #????????????????????? | | ????????????????????????# #????????????????????? | | ????????????????????????# #????????????????????? | | ????????????????????????# #????????????????????? | | ????????????????????????# #????????????????????? | | ????????????????????????# #????????????????????? | | ????????????????????????# #????????????????????? | | ????????????????????????+ #????????????????????? | | ????????????????????????#@ #????????????????????? | | ????????????????????????# #????????????????????? | | ????????????????????????# #????????????????????? | | ????????????????????????# #????????????????????? | | ????????????????????????# #????????????????????? | | ????????????????????????#ggg#????????????????????? | | ????????????????????????# #????????????????????? | | ????????????????????????# #????????????????????? | | ????????????????????????# !g#????????????????????? | | ???????????????????????## g ########?????????????? | | ???????????????????????# r## ############??? | | ???????????????????????# ?? | | ????????########???????# ! ?? | | ????????# #???????# ?? | | ????????# """ #???????# ##/# ##### #????? | | ????????# """ ############### % #??????????? | | ????????# """ # #?????# ##??????????? | | ######### # #?????# #??????????? | | # "" # ####### " #??????????? | | + "" # + " ##??????????? | | ^ # =# ####### ##???????????? | | ## # #?????###"####????????????? | | # % # #???????###???????????????? | | # % ### ###?????????????????????????? | | ## [ * ## #???????????????????????????? | +----------------------------------------------------+ Best States ------------- Heat Dissipation 31 Energy Generation 18 Energy Capacity 265 Matter Stores 455 Matter Capacity 500 Sight Range 16 Terrain Scan Density 10 Core Shielding 20 Evasion (%) 44 Recoil Reduction 3 Defensive Hacking 11 Item Schematics ----------------- None Robot Schematics ------------------ None Fabricated ------------ Nothing Alien Tech Used ----------------- None Achievements -------------- None Challenges ------------ None Game ------ Seed PulseTeslaExpander Manual? 0 Play Time 00:40:56 Cumulative 40.2 hours Start 2024.09.08 @ 16:39:20 End 2024.09.08 @ 17:24:02 Sessions 1 Manual Loads 0 Difficulty Rogue Special Mode None Game No. 14 Rogue 14 Adventurer 0 Explorer 0 Win Type - Total 0 Types 0/0/0/0/0/0/0/0/0 Lore% 16 Gallery% 27 Achievement% 26 Wizard Run 0 Options --------- Layout 1 ASCII 0 Keyboard 0 Movement Arrows Keybinds 0 Fullscreen 1 Font 24/Terminus Map View 50x35 Zoom Use 0% Tactical HUD 1 Map Filters NONE Filters NONE Steam 1 RUN: f2cb23bc-dbba-4ae9-a78c-c7e2d8f731a5